[Event "19th IPCA WCC 2019"]
[Site "Ruzomberok"]
[Date "2019.06.28"]
[Round "1.1"]
[White "Yarmonov, Igor"]
[Black "Jennitha, Anto K."]
[Result "1-0"]
[ECO "D00"]
[WhiteElo "2389"]
[BlackElo "1972"]
[Annotator "NA"]
[PlyCount "99"]
[EventDate "2019.06.28"]
[EventType "swiss"]
[EventCountry "SVK"]
[SourceTitle "playchess.com"]
[Source "ChessBase"]
[SourceQuality "1"]
[TimeControl "5400+30"]

1. d4 {[%emt 0:00:00]} d5 {[%emt 0:00:00]} 2. Bf4 {[%emt 0:00:00]} Nf6 {[%emt 0:00:00]} 3. e3 {[%emt 0:00:02]} e6 {[%emt 0:00:00]} 4. Nd2 {[%emt 0:00:24]} Bd6 {[%emt 0:00:21]} 5. c3 {[%emt 0:00:19]} O-O {[%emt 0:04:11]} 6. Bd3 {[%emt 0:00:14]} c5 {[%emt 0:01:30]} 7. Bxd6 {[%emt 0:00:31]} Qxd6 {[%emt 0:00:10]} 8. Ngf3 {[%emt 0:00:31]} Nc6 {[%emt 0:00:41]} 9. O-O {[%emt 0:01:55]} Rd8 {[%emt 0:14:03]} 10. a3 {[%emt 0:01:13]} e5 {[%emt 0:08:20]} 11. dxe5 {[%emt 0:00:11]} Nxe5 {[%emt 0:00:05]} 12. Nxe5 {[%emt 0:00:34]} Qxe5 {[%emt 0:00:03]} 13. Qf3 {[%emt 0:01:00]} Bg4 {[%emt 0:13:24]} 14. Qg3 {[%emt 0:00:04]} Qxg3 {[%emt 0:00:44]} 15. hxg3 {[%emt 0:00:06]} b6 {[%emt 0:01:22]} 16. f3 {[%emt 0:02:39]} Be6 {[%emt 0:01:43]} 17. Kf2 {[%emt 0:00:45]} h6 {[%emt 0:01:03]} 18. Rh1 {[%emt 0:09:12]} Kf8 {[%emt 0:02:55]} 19. g4 {[%emt 0:01:45]} Ke7 {[%emt 0:02:33]} 20. Rad1 {[%emt 0:00:36]} Rac8 {[%emt 0:05:00]} 21. Nf1 {[%emt 0:01:34]} d4 {[%emt 0:13:53]} 22. cxd4 {[%emt 0:01:52]} cxd4 {[%emt 0:00:08]} 23. e4 {[%emt 0:01:03]} Nd7 {[%emt 0:01:02]} 24. Ng3 {[%emt 0:08:52]} Ne5 {[%emt 0:04:23]} 25. Ke2 {[%emt 0:05:37]} Nxd3 {[%emt 0:05:56]} 26. Kxd3 {[%emt 0:00:05]} Bc4+ {[%emt 0:01:42]} 27. Kd2 {[%emt 0:00:05]} g6 {[%emt 0:04:38]} 28. Rc1 {[%emt 0:00:49]} Bb3 {[%emt 0:01:58]} 29. Ne2 {[%emt 0:01:23]} Bc4 {[%emt 0:01:00]} 30. Nf4 {[%emt 0:02:03]} Kf6 {[%emt 0:02:59]} 31. g3 {[%emt 0:02:16]} Kg7 {[%emt 0:02:34]} 32. Nd3 {[%emt 0:06:23]} b5 {[%emt 0:01:16]} 33. Rc2 {[%emt 0:04:58]} Bxd3 {[%emt 0:02:26]} 34. Kxd3 {[%emt 0:00:32]} Rxc2 {[%emt 0:00:09]} 35. Kxc2 {[%emt 0:00:28]} Rc8+ {[%emt 0:00:13]} 36. Kd3 {[%emt 0:00:08]} Rc4 {[%emt 0:00:04]} 37. Rh2 {[%emt 0:02:40]} Kf6 {[%emt 0:03:49]} 38. f4 {[%emt 0:02:00]} Ke6 {[%emt 0:00:19]} 39. Rc2 {[%emt 0:04:22]} Rxc2 {[%emt 0:00:22]} 40. Kxc2 {[%emt 0:00:15]} f5 {[%emt 0:00:02]} 41. gxf5+ {[%emt 0:00:28]} gxf5 {[%emt 0:00:02]} 42. Kd3 {[%emt 0:00:42]} fxe4+ {[%emt 0:00:29]} 43. Kxe4 {[%emt 0:00:28]} d3 {[%emt 0:00:02]} 44. Kxd3 {[%emt 0:00:25]} Kf5 {[%emt 0:00:01]} 45. Ke3 {[%emt 0:01:59]} h5 {[%emt 0:03:27]} 46. Kf3 {[%emt 0:00:29]} a5 {[%emt 0:00:34]} 47. b4 {[%emt 0:00:35]} a4 {[%emt 0:00:28]} 48. g4+ {[%emt 0:00:39]} hxg4+ {[%emt 0:00:39]} 49. Kg3 {[%emt 0:00:22]} Kf6 {[%emt 0:01:08]} 50. Kxg4 {[%emt 0:00:32]} 1-0

[Event "19th IPCA WCC 2019"]
[Site "Ruzomberok"]
[Date "2019.06.28"]
[Round "1.2"]
[White "Tsapalin, Sergey"]
[Black "Obodchuk, Andrei"]
[Result "0-1"]
[ECO "A20"]
[WhiteElo "1935"]
[BlackElo "2316"]
[Annotator "NA"]
[PlyCount "76"]
[EventDate "2019.06.28"]
[EventType "swiss"]
[EventCountry "SVK"]
[SourceTitle "playchess.com"]
[Source "ChessBase"]
[SourceQuality "1"]
[TimeControl "5400+30"]

1. c4 {[%emt 0:00:00]} e5 {[%emt 0:00:00]} 2. g3 {[%emt 0:00:00]} c6 {[%emt 0:00:00]} 3. d4 {[%emt 0:00:00]} e4 {[%emt 0:01:27]} 4. Nc3 {[%emt 0:00:23]} d5 {[%emt 0:00:16]} 5. h4 {[%emt 0:00:38]} Na6 {[%emt 0:07:13]} 6. cxd5 {[%emt 0:03:59]} cxd5 {[%emt 0:00:05]} 7. Qb3 {[%emt 0:00:16]} Nc7 {[%emt 0:01:08]} 8. Nh3 {[%emt 0:00:44]} Bd6 {[%emt 0:01:59]} 9. Nf4 {[%emt 0:03:12]} Nf6 {[%emt 0:00:50]} 10. Bd2 {[%emt 0:05:43]} O-O {[%emt 0:00:19]} 11. Bh3 {[%emt 0:10:52]} Bxh3 {[%emt 0:03:02]} 12. Rxh3 {[%emt 0:00:04]} Qd7 {[%emt 0:02:35]} 13. Rh1 {[%emt 0:00:27]} b5 {[%emt 0:01:50]} 14. Ncxd5 {[%emt 0:04:48]} Nfxd5 {[%emt 0:00:18]} 15. Nxd5 {[%emt 0:00:09]} Nxd5 {[%emt 0:00:37]} 16. Qxd5 {[%emt 0:00:04]} e3 {[%emt 0:00:15]} 17. O-O-O {[%emt 0:03:38]} exd2+ {[%emt 0:00:21]} 18. Rxd2 {[%emt 0:00:02]} Rfd8 {[%emt 0:03:22]} 19. Kb1 {[%emt 0:00:25]} Qg4 {[%emt 0:03:35]} 20. Rc2 {[%emt 0:04:54]} Bf8 {[%emt 0:01:22]} 21. Qxb5 {[%emt 0:00:56]} Qxd4 {[%emt 0:00:05]} 22. e3 {[%emt 0:00:30]} Qe4 {[%emt 0:00:07]} 23. Rhc1 {[%emt 0:00:18]} g6 {[%emt 0:02:00]} 24. Qc6 {[%emt 0:09:28]} Qe5 {[%emt 0:00:59]} 25. Qc3 {[%emt 0:00:32]} Qf5 {[%emt 0:00:41]} 26. Qe1 {[%emt 0:03:42]} Re8 {[%emt 0:02:10]} 27. Ka1 {[%emt 0:00:46]} Rab8 {[%emt 0:00:11]} 28. Qe2 {[%emt 0:00:25]} Bg7 {[%emt 0:00:14]} 29. g4 {[%emt 0:00:47]} Qe4 {[%emt 0:01:19]} 30. h5 {[%emt 0:03:09]} g5 {[%emt 0:01:18]} 31. h6 {[%emt 0:06:45]} Bxh6 {[%emt 0:01:03]} 32. Rc4 {[%emt 0:00:13]} Qe6 {[%emt 0:00:48]} 33. Rc6 {[%emt 0:00:30]} Rec8 {[%emt 0:00:37]} 34. Rxc8+ {[%emt 0:10:18]} Rxc8 {[%emt 0:00:02]} 35. Rxc8+ {[%emt 0:00:14]} Qxc8 {[%emt 0:00:03]} 36. Kb1 {[%emt 0:00:08]} Bg7 {[%emt 0:00:31]} 37. f3 {[%emt 0:00:17]} Qb8 {[%emt 0:01:37]} 38. b3 {[%emt 0:00:14]} Qe5 {[%emt 0:00:04]} 0-1

[Event "19th IPCA WCC 2019"]
[Site "Ruzomberok"]
[Date "2019.06.28"]
[Round "1.3"]
[White "Gurbanov, Andrei"]
[Black "Gerasimova, Svetlana"]
[Result "1-0"]
[ECO "A43"]
[WhiteElo "2300"]
[BlackElo "1913"]
[Annotator "NA"]
[PlyCount "36"]
[EventDate "2019.06.28"]
[EventType "swiss"]
[EventCountry "SVK"]
[SourceTitle "playchess.com"]
[Source "ChessBase"]
[SourceQuality "1"]
[TimeControl "5400+30"]

1. d4 {[%emt 0:00:00]} c5 {[%emt 0:00:00]} 2. d5 {[%emt 0:00:00]} g6 {[%emt 0:00:54]} 3. e4 {[%emt 0:00:46]} Bg7 {[%emt 0:00:04]} 4. h4 {[%emt 0:00:53]} d6 {[%emt 0:00:28]} 5. h5 {[%emt 0:00:19]} Nf6 {[%emt 0:00:23]} 6. h6 {[%emt 0:00:15]} Bf8 {[%emt 0:00:03]} 7. Nc3 {[%emt 0:00:15]} a6 {[%emt 0:02:27]} 8. a4 {[%emt 0:00:14]} Qa5 {[%emt 0:02:01]} 9. Bd2 {[%emt 0:03:17]} Qb4 {[%emt 0:02:39]} 10. Bd3 {[%emt 0:04:37]} Qb6 {[%emt 0:05:31]} 11. a5 {[%emt 0:00:22]} Qc7 {[%emt 0:01:21]} 12. Na4 {[%emt 0:09:33]} Nbd7 {[%emt 0:00:20]} 13. Bc3 {[%emt 0:07:41]} b5 {[%emt 0:13:49]} 14. axb6 {[%emt 0:00:08]} Nxb6 {[%emt 0:00:04]} 15. Nxb6 {[%emt 0:02:27]} Qxb6 {[%emt 0:00:04]} 16. Qf3 {[%emt 0:00:13]} Qd8 {[%emt 0:05:13]} 17. e5 {[%emt 0:06:01]} dxe5 {[%emt 0:02:08]} 18. Bxe5 {[%emt 0:00:15]} Qxd5 {[%emt 0:00:42]} 1-0

[Event "19th IPCA WCC 2019"]
[Site "Ruzomberok"]
[Date "2019.06.28"]
[Round "1.4"]
[White "Alekseev, Mikhail"]
[Black "Nowak, Lukasz"]
[Result "0-1"]
[ECO "B22"]
[WhiteElo "1869"]
[BlackElo "2267"]
[Annotator "NA"]
[PlyCount "71"]
[EventDate "2019.06.28"]
[EventType "swiss"]
[EventCountry "SVK"]
[SourceTitle "playchess.com"]
[Source "ChessBase"]
[SourceQuality "1"]
[TimeControl "5400+30"]

1. e4 {[%emt 0:00:00]} c5 {[%emt 0:00:00]} 2. c3 {[%emt 0:00:00]} Nf6 {[%emt 0:00:00]} 3. e5 {[%emt 0:00:03]} Nd5 {[%emt 0:00:06]} 4. d4 {[%emt 0:00:08]} cxd4 {[%emt 0:00:13]} 5. Nf3 {[%emt 0:00:03]} Nc6 {[%emt 0:00:20]} 6. cxd4 {[%emt 0:00:51]} d6 {[%emt 0:00:14]} 7. Nc3 {[%emt 0:01:51]} dxe5 {[%emt 0:11:54]} 8. dxe5 {[%emt 0:02:24]} Nxc3 {[%emt 0:01:53]} 9. Qxd8+ {[%emt 0:04:25]} Nxd8 {[%emt 0:00:37]} 10. bxc3 {[%emt 0:00:16]} Bd7 {[%emt 0:05:02]} 11. Be3 {[%emt 0:05:18]} e6 {[%emt 0:01:15]} 12. Rd1 {[%emt 0:05:35]} Rc8 {[%emt 0:03:54]} 13. Bd4 {[%emt 0:08:13]} Nc6 {[%emt 0:07:37]} 14. Rb1 {[%emt 0:05:20]} Nxd4 {[%emt 0:06:21]} 15. Nxd4 {[%emt 0:01:59]} b6 {[%emt 0:03:36]} 16. Nb5 {[%emt 0:05:44]} a6 {[%emt 0:07:24]} 17. Nd4 {[%emt 0:10:13]} b5 {[%emt 0:01:05]} 18. a4 {[%emt 0:00:36]} Rxc3 {[%emt 0:13:39]} 19. axb5 {[%emt 0:00:26]} Bc5 {[%emt 0:00:55]} 20. Nf3 {[%emt 0:16:41]} a5 {[%emt 0:05:55]} 21. Be2 {[%emt 0:09:42]} Ke7 {[%emt 0:02:42]} 22. O-O {[%emt 0:00:57]} Rb8 {[%emt 0:04:18]} 23. h3 {[%emt 0:03:22]} Bb4 {[%emt 0:03:26]} 24. Nd4 {[%emt 0:05:06]} Rc5 {[%emt 0:01:07]} 25. f4 {[%emt 0:03:22]} g5 {[%emt 0:03:24]} 26. Nb3 {[%emt 0:01:48]} Rcc8 {[%emt 0:04:45]} 27. Kh1 {[%emt 0:02:10]} Bc3 {[%emt 0:03:43]} 28. fxg5 {[%emt 0:01:58]} Bxb5 {[%emt 0:01:22]} 29. Bxb5 {[%emt 0:03:34]} Rxb5 {[%emt 0:00:06]} 30. Rf3 {[%emt 0:01:03]} a4 {[%emt 0:01:22]} 31. Nd2 {[%emt 0:00:10]} Rxb1+ {[%emt 0:00:09]} 32. Nxb1 {[%emt 0:00:08]} Bxe5 {[%emt 0:00:10]} 33. Rf1 {[%emt 0:00:21]} Bb2 {[%emt 0:01:15]} 34. Nd2 {[%emt 0:00:44]} a3 {[%emt 0:02:08]} 35. Nb3 {[%emt 0:00:16]} a2 {[%emt 0:00:22]} 36. Rf2 {[%emt 0:00:41]} 0-1

[Event "19th IPCA WCC 2019"]
[Site "Ruzomberok"]
[Date "2019.06.28"]
[Round "1.5"]
[White "Babula, Milan"]
[Black "Belak, Stefan"]
[Result "1-0"]
[ECO "C03"]
[WhiteElo "2220"]
[BlackElo "1851"]
[Annotator "NA"]
[PlyCount "91"]
[EventDate "2019.06.28"]
[EventType "swiss"]
[EventCountry "SVK"]
[SourceTitle "playchess.com"]
[Source "ChessBase"]
[SourceQuality "1"]
[TimeControl "5400+30"]

1. e4 {[%emt 0:00:00]} e6 {[%emt 0:00:00]} 2. d4 {[%emt 0:00:00]} d5 {[%emt 0:00:00]} 3. Nd2 {[%emt 0:00:00]} h6 {[%emt 0:00:08]} 4. Ngf3 {[%emt 0:01:57]} Nf6 {[%emt 0:03:54]} 5. Bd3 {[%emt 0:04:25]} c5 {[%emt 0:03:35]} 6. e5 {[%emt 0:02:53]} Nfd7 {[%emt 0:01:09]} 7. c3 {[%emt 0:00:06]} Nc6 {[%emt 0:02:31]} 8. O-O {[%emt 0:00:18]} cxd4 {[%emt 0:01:23]} 9. cxd4 {[%emt 0:00:08]} Qb6 {[%emt 0:01:41]} 10. Nb3 {[%emt 0:03:32]} a5 {[%emt 0:03:04]} 11. a4 {[%emt 0:00:35]} Ndb8 {[%emt 0:02:43]} 12. Bb5 {[%emt 0:07:51]} Bd7 {[%emt 0:04:37]} 13. Bd2 {[%emt 0:01:19]} Nb4 {[%emt 0:03:33]} 14. Bxd7+ {[%emt 0:17:59]} Nxd7 {[%emt 0:00:36]} 15. Nc1 {[%emt 0:01:16]} Be7 {[%emt 0:04:36]} 16. Ne2 {[%emt 0:17:18]} Rc8 {[%emt 0:11:15]} 17. Nc3 {[%emt 0:02:45]} O-O {[%emt 0:02:27]} 18. Nb5 {[%emt 0:01:41]} Rc6 {[%emt 0:08:22]} 19. Bc3 {[%emt 0:03:44]} Nb8 {[%emt 0:09:23]} 20. Nd2 {[%emt 0:04:36]} N8a6 {[%emt 0:02:46]} 21. Nb3 {[%emt 0:01:04]} Nc7 {[%emt 0:01:35]} 22. Qe2 {[%emt 0:00:31]} Ra8 {[%emt 0:04:37]} 23. Nxc7 {[%emt 0:08:10]} Qxc7 {[%emt 0:02:14]} 24. g4 {[%emt 0:01:16]} b6 {[%emt 0:03:23]} 25. f4 {[%emt 0:01:28]} Rc8 {[%emt 0:05:00]} 26. Rf3 {[%emt 0:00:27]} Qd8 {[%emt 0:00:35]} 27. f5 {[%emt 0:00:37]} Bg5 {[%emt 0:04:17]} 28. Raf1 {[%emt 0:02:26]} Na2 {[%emt 0:05:28]} 29. Qe1 {[%emt 0:10:13]} Nxc3 {[%emt 0:01:39]} 30. bxc3 {[%emt 0:00:01]} Bh4 {[%emt 0:01:16]} 31. Qb1 {[%emt 0:03:36]} Rxc3 {[%emt 0:00:27]} 32. fxe6 {[%emt 0:00:06]} fxe6 {[%emt 0:01:00]} 33. Qg6 {[%emt 0:00:14]} Rxf3 {[%emt 0:00:47]} 34. Qxe6+ {[%emt 0:00:05]} Kh8 {[%emt 0:01:12]} 35. Rxf3 {[%emt 0:00:02]} Rc2 {[%emt 0:01:39]} 36. Qg6 {[%emt 0:02:24]} Re2 {[%emt 0:01:03]} 37. Qd3 {[%emt 0:00:49]} Re4 {[%emt 0:00:37]} 38. h3 {[%emt 0:00:04]} Bg5 {[%emt 0:00:37]} 39. Qc2 {[%emt 0:02:17]} Qe8 {[%emt 0:00:56]} 40. Kg2 {[%emt 0:00:28]} Qg6 {[%emt 0:01:22]} 41. Qc8+ {[%emt 0:00:48]} Kh7 {[%emt 0:00:19]} 42. Rf8 {[%emt 0:00:28]} Re2+ {[%emt 0:01:50]} 43. Kf1 {[%emt 0:00:02]} Re1+ 44. Kxe1 {[%emt 0:00:19]} Bh4+ {[%emt 0:01:26]} 45. Kd2 {[%emt 0:01:02]} Qg5+ {[%emt 0:00:04]} 46. Kc2 {[%emt 0:00:19]} 1-0

[Event "19th IPCA WCC 2019"]
[Site "Ruzomberok"]
[Date "2019.06.28"]
[Round "1.6"]
[White "Matana, Zoran"]
[Black "Palin, Denis"]
[Result "0-1"]
[ECO "D32"]
[WhiteElo "1818"]
[BlackElo "2180"]
[Annotator "NA"]
[PlyCount "78"]
[EventDate "2019.06.28"]
[EventType "swiss"]
[EventCountry "SVK"]
[SourceTitle "playchess.com"]
[Source "ChessBase"]
[SourceQuality "1"]
[TimeControl "5400+30"]

1. d4 {[%emt 0:00:00]} e6 {[%emt 0:00:00]} 2. c4 {[%emt 0:00:00]} d5 {[%emt 0:00:00]} 3. Nc3 {[%emt 0:00:36]} c5 {[%emt 0:00:00]} 4. Nf3 {[%emt 0:01:19]} Nc6 {[%emt 0:00:00]} 5. Bg5 {[%emt 0:01:23]} f6 {[%emt 0:00:41]} 6. Bc1 {[%emt 0:01:27]} dxc4 {[%emt 0:01:53]} 7. e3 {[%emt 0:01:45]} Na5 {[%emt 0:02:58]} 8. Bd2 {[%emt 0:01:47]} a6 {[%emt 0:01:12]} 9. Ne4 {[%emt 0:01:06]} b5 {[%emt 0:03:11]} 10. Be2 {[%emt 0:06:31]} cxd4 {[%emt 0:00:56]} 11. exd4 {[%emt 0:00:33]} Ne7 {[%emt 0:03:22]} 12. O-O {[%emt 0:02:09]} Nf5 {[%emt 0:00:34]} 13. Ng3 {[%emt 0:02:54]} Nxg3 {[%emt 0:00:46]} 14. hxg3 {[%emt 0:00:02]} Nc6 {[%emt 0:05:34]} 15. Be3 {[%emt 0:05:34]} Bb7 {[%emt 0:01:10]} 16. Nh4 {[%emt 0:04:50]} Be7 {[%emt 0:08:07]} 17. Bh5+ {[%emt 0:02:06]} g6 {[%emt 0:00:47]} 18. Be2 {[%emt 0:03:42]} f5 {[%emt 0:00:41]} 19. Nf3 {[%emt 0:00:51]} Bf6 {[%emt 0:00:10]} 20. Qd2 {[%emt 0:03:09]} Qd5 {[%emt 0:01:32]} 21. Rfd1 {[%emt 0:02:31]} O-O {[%emt 0:00:30]} 22. Ne1 {[%emt 0:02:26]} Rad8 {[%emt 0:00:37]} 23. Bf3 {[%emt 0:02:43]} Qd7 {[%emt 0:00:09]} 24. d5 {[%emt 0:06:14]} Ne5 {[%emt 0:00:59]} 25. Bb6 {[%emt 0:01:11]} Rb8 {[%emt 0:01:02]} 26. Bc5 {[%emt 0:06:36]} Rfc8 {[%emt 0:01:40]} 27. Ba7 {[%emt 0:00:19]} Ra8 {[%emt 0:00:04]} 28. Bd4 {[%emt 0:00:26]} Nxf3+ {[%emt 0:08:02]} 29. Nxf3 {[%emt 0:01:28]} Bxd4 {[%emt 0:00:06]} 30. Qxd4 {[%emt 0:05:35]} Bxd5 {[%emt 0:00:13]} 31. Ne5 {[%emt 0:03:40]} Qb7 {[%emt 0:01:32]} 32. Qe3 {[%emt 0:00:26]} Rd8 {[%emt 0:01:39]} 33. g4 {[%emt 0:03:28]} Qg7 {[%emt 0:01:04]} 34. f3 {[%emt 0:08:17]} fxg4 {[%emt 0:02:40]} 35. fxg4 {[%emt 0:00:59]} Rf8 {[%emt 0:00:29]} 36. Kh2 {[%emt 0:03:50]} g5 {[%emt 0:00:24]} 37. Kg3 {[%emt 0:00:56]} Rf4 {[%emt 0:00:15]} 38. Nf3 {[%emt 0:01:46]} Raf8 {[%emt 0:02:14]} 39. Rd2 {[%emt 0:05:20]} Qh6 {[%emt 0:02:12]} 0-1

[Event "19th IPCA WCC 2019"]
[Site "Ruzomberok"]
[Date "2019.06.28"]
[Round "1.7"]
[White "Shashikant, Kutwal"]
[Black "Roehrig, Uwe"]
[Result "1-0"]
[ECO "C11"]
[WhiteElo "2176"]
[BlackElo "1802"]
[Annotator "NA"]
[PlyCount "33"]
[EventDate "2019.06.28"]
[EventType "swiss"]
[EventCountry "SVK"]
[SourceTitle "playchess.com"]
[Source "ChessBase"]
[SourceQuality "1"]
[TimeControl "5400+30"]

1. e4 {[%emt 0:00:00]} e6 {[%emt 0:00:00]} 2. d4 {[%emt 0:00:00]} d5 {[%emt 0:00:03]} 3. Nc3 {[%emt 0:00:04]} Nf6 {[%emt 0:00:28]} 4. e5 {[%emt 0:00:37]} Nfd7 {[%emt 0:00:44]} 5. f4 {[%emt 0:00:13]} a6 {[%emt 0:03:29]} 6. Nf3 {[%emt 0:00:09]} c5 {[%emt 0:01:51]} 7. Be3 {[%emt 0:00:22]} Nc6 {[%emt 0:03:13]} 8. Be2 {[%emt 0:05:02]} Qb6 {[%emt 0:03:06]} 9. Na4 {[%emt 0:03:00]} Qa5+ {[%emt 0:02:01]} 10. c3 {[%emt 0:00:36]} cxd4 {[%emt 0:01:53]} 11. b4 {[%emt 0:06:38]} Qc7 {[%emt 0:03:17]} 12. Nxd4 {[%emt 0:01:02]} Be7 {[%emt 0:08:22]} 13. O-O {[%emt 0:01:23]} O-O {[%emt 0:00:44]} 14. Bd3 {[%emt 0:13:13]} f5 {[%emt 0:09:03]} 15. Nxe6 {[%emt 0:00:23]} Qb8 {[%emt 0:04:07]} 16. Nxf8 {[%emt 0:00:15]} Bxf8 {[%emt 0:02:26]} 17. Bxf5 {[%emt 0:00:20]} 1-0

[Event "19th IPCA WCC 2019"]
[Site "Ruzomberok"]
[Date "2019.06.28"]
[Round "1.8"]
[White "Kaydanovich, Marina"]
[Black "Juvan, Jaka"]
[Result "0-1"]
[ECO "E46"]
[WhiteElo "1760"]
[BlackElo "2168"]
[Annotator "NA"]
[PlyCount "58"]
[EventDate "2019.06.28"]
[EventType "swiss"]
[EventCountry "SVK"]
[SourceTitle "playchess.com"]
[Source "ChessBase"]
[SourceQuality "1"]
[TimeControl "5400+30"]

1. d4 {[%emt 0:00:00]} Nf6 {[%emt 0:00:00]} 2. c4 {[%emt 0:00:00]} e6 {[%emt 0:00:00]} 3. Nc3 {[%emt 0:00:08]} Bb4 {[%emt 0:00:00]} 4. e3 {[%emt 0:00:36]} O-O {[%emt 0:00:14]} 5. Nge2 {[%emt 0:00:29]} Re8 {[%emt 0:00:36]} 6. a3 {[%emt 0:00:12]} Bf8 {[%emt 0:00:15]} 7. Ng3 {[%emt 0:02:25]} d5 {[%emt 0:01:16]} 8. Be2 {[%emt 0:01:21]} b6 {[%emt 0:02:03]} 9. O-O {[%emt 0:01:03]} Ba6 {[%emt 0:00:48]} 10. b3 {[%emt 0:05:28]} c5 {[%emt 0:29:18]} 11. Re1 {[%emt 0:05:01]} dxc4 {[%emt 0:06:58]} 12. bxc4 {[%emt 0:01:48]} Nc6 {[%emt 0:00:57]} 13. Bf3 {[%emt 0:12:54]} Rc8 {[%emt 0:00:10]} 14. Nb5 {[%emt 0:08:10]} cxd4 {[%emt 0:01:19]} 15. exd4 {[%emt 0:07:49]} Bxb5 {[%emt 0:00:37]} 16. cxb5 {[%emt 0:00:03]} Nxd4 {[%emt 0:00:14]} 17. Rb1 {[%emt 0:00:48]} Nc2 {[%emt 0:02:10]} 18. Bc6 {[%emt 0:03:04]} Nxe1 {[%emt 0:00:21]} 19. Qxe1 {[%emt 0:00:03]} Qd3 {[%emt 0:02:52]} 20. Bb2 {[%emt 0:01:56]} Red8 {[%emt 0:00:39]} 21. Bxf6 {[%emt 0:01:35]} gxf6 {[%emt 0:00:02]} 22. Ne4 {[%emt 0:03:14]} f5 {[%emt 0:01:12]} 23. Nf6+ {[%emt 0:03:17]} Kh8 {[%emt 0:00:02]} 24. Nh5 {[%emt 0:09:48]} Qd4 {[%emt 0:00:17]} 25. g3 {[%emt 0:03:00]} Bxa3 {[%emt 0:01:28]} 26. Kg2 {[%emt 0:00:58]} a6 {[%emt 0:00:38]} 27. Bb7 {[%emt 0:10:25]} Rc2 {[%emt 0:10:45]} 28. bxa6 {[%emt 0:09:39]} Bc5 {[%emt 0:00:17]} 29. a7 {[%emt 0:01:53]} Qxf2+ {[%emt 0:00:24]} 0-1

[Event "19th IPCA WCC 2019"]
[Site "Ruzomberok"]
[Date "2019.06.28"]
[Round "1.9"]
[White "Tersinsev, Andrey"]
[Black "Korber, Antonin"]
[Result "1-0"]
[ECO "A40"]
[WhiteElo "2164"]
[BlackElo "1759"]
[Annotator "NA"]
[PlyCount "47"]
[EventDate "2019.06.28"]
[EventType "swiss"]
[EventCountry "SVK"]
[SourceTitle "playchess.com"]
[Source "ChessBase"]
[SourceQuality "1"]
[TimeControl "5400+30"]

1. d4 {[%emt 0:00:00]} e6 {[%emt 0:00:00]} 2. Bf4 {[%emt 0:00:13]} b6 {[%emt 0:00:00]} 3. e3 {[%emt 0:00:16]} Bb7 {[%emt 0:00:00]} 4. c4 {[%emt 0:00:14]} Nf6 {[%emt 0:02:00]} 5. Nc3 {[%emt 0:00:10]} Bb4 {[%emt 0:01:20]} 6. a3 {[%emt 0:02:19]} Bxc3+ {[%emt 0:01:11]} 7. bxc3 {[%emt 0:00:02]} O-O {[%emt 0:02:09]} 8. Nf3 {[%emt 0:00:11]} Nh5 {[%emt 0:02:37]} 9. Bg3 {[%emt 0:04:57]} d6 {[%emt 0:03:57]} 10. Bh4 {[%emt 0:02:35]} Qe8 {[%emt 0:07:51]} 11. Bd3 {[%emt 0:10:51]} f5 {[%emt 0:04:13]} 12. O-O {[%emt 0:03:00]} h6 {[%emt 0:06:42]} 13. Be2 {[%emt 0:05:16]} Nf6 {[%emt 0:04:06]} 14. Bxf6 {[%emt 0:01:33]} Rxf6 {[%emt 0:00:33]} 15. Nd2 {[%emt 0:02:11]} Nd7 {[%emt 0:11:52]} 16. Bf3 {[%emt 0:00:30]} Bxf3 {[%emt 0:01:05]} 17. Qxf3 {[%emt 0:00:16]} Nf8 {[%emt 0:00:43]} 18. e4 {[%emt 0:02:39]} Ng6 {[%emt 0:11:56]} 19. exf5 {[%emt 0:02:36]} Rxf5 {[%emt 0:01:36]} 20. Qe4 {[%emt 0:00:30]} d5 {[%emt 0:08:31]} 21. cxd5 {[%emt 0:00:18]} Rxd5 {[%emt 0:05:28]} 22. Rfe1 {[%emt 0:01:08]} Rd6 {[%emt 0:00:51]} 23. Nc4 {[%emt 0:01:14]} Rc6 {[%emt 0:00:50]} 24. d5 {[%emt 0:00:14]} 1-0

[Event "19th IPCA WCC 2019"]
[Site "Ruzomberok"]
[Date "2019.06.28"]
[Round "1.10"]
[White "Felegyi, Karoly"]
[Black "Gedgafov, Chamal"]
[Result "0-1"]
[ECO "B43"]
[WhiteElo "1674"]
[BlackElo "2163"]
[Annotator "NA"]
[PlyCount "58"]
[EventDate "2019.06.28"]
[EventType "swiss"]
[EventCountry "SVK"]
[SourceTitle "playchess.com"]
[Source "ChessBase"]
[SourceQuality "1"]
[TimeControl "5400+30"]

1. e4 {[%emt 0:00:00]} c5 {[%emt 0:00:00]} 2. Nf3 {[%emt 0:00:04]} e6 {[%emt 0:00:00]} 3. Nc3 {[%emt 0:01:36]} a6 {[%emt 0:00:25]} 4. d4 {[%emt 0:01:22]} cxd4 {[%emt 0:00:10]} 5. Nxd4 {[%emt 0:00:28]} Qc7 {[%emt 0:00:17]} 6. a3 {[%emt 0:00:48]} Nf6 {[%emt 0:00:23]} 7. Bd3 {[%emt 0:03:54]} Nc6 {[%emt 0:04:40]} 8. Nxc6 {[%emt 0:03:20]} bxc6 {[%emt 0:00:20]} 9. O-O {[%emt 0:05:26]} Bc5 {[%emt 0:03:46]} 10. Kh1 {[%emt 0:05:25]} h5 {[%emt 0:06:33]} 11. f4 {[%emt 0:04:22]} Ng4 {[%emt 0:02:02]} 12. Qf3 {[%emt 0:01:17]} d5 {[%emt 0:01:41]} 13. Bd2 {[%emt 0:07:09]} Rb8 {[%emt 0:02:23]} 14. b4 {[%emt 0:00:33]} Ba7 {[%emt 0:05:48]} 15. Rae1 {[%emt 0:03:34]} Kf8 {[%emt 0:11:48]} 16. Nd1 {[%emt 0:03:32]} g6 {[%emt 0:09:24]} 17. Ne3 {[%emt 0:04:20]} f5 {[%emt 0:01:42]} 18. e5 {[%emt 0:04:27]} a5 {[%emt 0:02:02]} 19. Nxg4 {[%emt 0:05:16]} hxg4 {[%emt 0:00:22]} 20. Qg3 {[%emt 0:00:17]} Qd8 {[%emt 0:01:23]} 21. Be3 {[%emt 0:06:39]} d4 {[%emt 0:03:31]} 22. Bd2 {[%emt 0:00:38]} c5 {[%emt 0:01:24]} 23. b5 {[%emt 0:05:30]} Bb7 {[%emt 0:01:35]} 24. Kg1 {[%emt 0:00:42]} Bd5 {[%emt 0:00:31]} 25. c3 {[%emt 0:08:58]} c4 {[%emt 0:02:01]} 26. a4 {[%emt 0:05:50]} cxd3 {[%emt 0:00:49]} 27. Qxd3 {[%emt 0:00:08]} dxc3+ {[%emt 0:03:02]} 28. Be3 {[%emt 0:00:35]} Rxh2 {[%emt 0:00:56]} 29. g3 {[%emt 0:05:13]} Rg2+ {[%emt 0:00:15]} 0-1